bitfinex-derivatives/quotes_BTCF0:USTF0_20240814
["timestamp","ask_amount","ask_price","bid_price","bid_amount"]
[1723629972318,0.03163688,61016.0,61015.0,0.28536682]
[1723629973021,0.03163688,61016.0,61015.0,0.27436128]
[1723629973222,0.0316392,61016.0,61015.0,0.27436128]
[1723629973523,0.07174941,61016.0,61015.0,0.27436128]
[1723629973824,0.07174941,61016.0,61015.0,0.27536128]
[1723629974023,0.07174941,61016.0,61015.0,0.35728228]
[1723629974219,0.16228266,61016.0,61015.0,0.35728228]
[1723629974725,0.07174941,61016.0,61015.0,0.34828228]
[1723629975223,0.07174941,61016.0,61015.0,0.42985537]
[1723629975613,0.08191,61024.0,61016.0,0.08192]
[1723629975819,0.18191,61024.0,61023.0,0.04880121]
[1723629976021,0.18191,61024.0,61023.0,0.14397085]
[1723629976327,0.18191,61024.0,61023.0,0.09516964]
[1723629976627,0.1,61024.0,61023.0,0.09516964]
[1723629980330,0.1,61024.0,61023.0,0.09516879]
[1723629980726,0.106,61024.0,61023.0,0.09616879]
[1723629982727,0.106,61024.0,61023.0,0.001]
[1723629982928,0.106,61024.0,61023.0,0.09616862]
[1723629983516,0.37496224,61024.0,61023.0,0.09616862]
[1723629983922,0.2280235,61024.0,61023.0,0.26610845]
[1723629984125,0.2280235,61024.0,61023.0,0.26510845]
[1723629984126,0.17174862,61024.0,61023.0,0.26510845]
[1723629984337,0.17674862,61024.0,61023.0,0.26510845]
[1723629984722,0.30767477,61024.0,61023.0,0.26510845]
[1723629986226,0.30766306,61024.0,61023.0,0.26510845]
[1723629986534,0.17674862,61024.0,61023.0,0.26510845]
[1723629986834,0.17674862,61024.0,61022.0,0.081911]
[1723629987024,0.20266228,61023.0,61022.0,0.081911]
[1723629987225,0.07174862,61023.0,61022.0,0.081911]
[1723629988425,0.07174862,61023.0,61022.0,0.083911]
[1723629990530,0.005,61024.0,61023.0,0.08191]
[1723629990732,0.00024584,61027.0,61024.0,0.081908]
[1723629991031,0.00024584,61027.0,61025.0,0.3608]
[1723629991237,0.00024584,61027.0,61026.0,0.081906]
[1723629992833,0.01024584,61027.0,61026.0,0.13073064]
[1723629993131,0.01324584,61027.0,61026.0,0.13073064]
[1723629993330,0.01324584,61027.0,61026.0,0.081906]
[1723629993931,0.01324584,61027.0,61026.0,0.195206]
[1723629994841,0.01324584,61027.0,61026.0,0.29036862]
[1723629995033,0.01324584,61027.0,61026.0,0.29036832]
[1723629995343,0.01324584,61027.0,61026.0,0.09516232]
[1723629995942,0.01424584,61027.0,61026.0,0.09516232]
[1723629997740,0.98775084,61027.0,61026.0,0.09516232]
[1723629997940,0.081906,61026.0,61025.0,0.04888149]
[1723629998146,0.796806,61026.0,61024.0,0.04888149]
[1723629998348,0.305206,61026.0,61025.0,0.09517354]
[1723629998650,0.31392953,61026.0,61025.0,0.09516944]
[1723629998944,0.18174864,61026.0,61025.0,0.20846944]
[1723629999142,0.18174864,61026.0,61025.0,0.45997366]
[1723629999648,0.18474864,61026.0,61025.0,0.20846944]
[1723629999842,0.18474864,61026.0,61025.0,0.45997368]
[1723630000544,0.18474864,61026.0,61025.0,0.20846944]
[1723630000938,0.18474864,61026.0,61025.0,0.45997495]
[1723630001844,0.18474864,61026.0,61025.0,0.36480551]
[1723630002054,0.18474864,61026.0,61025.0,0.1133]
[1723630002241,0.18474864,61026.0,61025.0,0.29002923]
[1723630002643,0.18174864,61026.0,61025.0,0.29002923]
[1723630002950,0.18174356,61026.0,61025.0,0.37193723]
[1723630003552,0.18674356,61026.0,61025.0,0.37193723]
[1723630004043,0.18174356,61026.0,61025.0,0.37193723]
[1723630004243,0.18174356,61026.0,61025.0,0.195208]
[1723630004846,0.18474356,61026.0,61025.0,0.195208]
[1723630005549,0.18474247,61026.0,61025.0,0.195208]
[1723630005847,0.113,61026.0,61025.0,0.195208]
[1723630009943,0.113,61026.0,61025.0,0.46029658]
[1723630012655,0.113,61026.0,61022.0,0.44233879]
[1723630012656,1.4787,61026.0,61022.0,0.06525916]
[1723630012946,0.195211,61023.0,61022.0,0.04895207]
[1723630013151,0.081914,61021.0,61018.0,0.06525916]
[1723630013346,0.3608,61019.0,61018.0,0.06525916]
[1723630013548,0.442716,61019.0,61018.0,0.1604385]
[1723630013744,0.676016,61019.0,61018.0,0.1604385]
[1723630013940,0.676016,61019.0,61018.0,0.09517934]
[1723630015355,0.676016,61019.0,61018.0,0.14410009]
[1723630015653,0.315216,61019.0,61018.0,0.14410009]
[1723630016356,0.081917,61018.0,61017.0,0.04892075]
[1723630016560,0.315217,61018.0,61017.0,0.04892075]
[1723630016751,0.315217,61018.0,61017.0,0.04892377]
[1723630016951,0.315217,61018.0,61015.0,0.00024584]
[1723630017350,0.315217,61018.0,61017.0,0.04891458]
[1723630018153,0.315217,61018.0,61017.0,0.09517917]
[1723630018743,0.315217,61018.0,61017.0,0.19035878]
[1723630018954,0.315217,61018.0,61017.0,0.19035845]
[1723630019147,0.315217,61018.0,61017.0,0.23926838]
[1723630019354,0.806897,61018.0,61017.0,0.23926917]
[1723630019646,1.288815,61018.0,61017.0,0.09517917]
[1723630019851,0.08192,61016.0,61015.0,0.00024584]
[1723630020053,0.28384,61016.0,61015.0,0.00024584]
[1723630020245,1.17552,61016.0,61015.0,0.00024584]
[1723630020657,1.165366,61016.0,61015.0,0.00024584]
[1723630020854,1.12524651,61016.0,61015.0,0.00024584]
[1723630021051,0.64332651,61016.0,61015.0,0.00024584]
[1723630021250,0.75662651,61016.0,61015.0,0.00024584]
[1723630021654,0.26494651,61016.0,61015.0,0.00224584]
[1723630022546,0.15164651,61016.0,61015.0,0.00224584]
[1723630022751,0.15164312,61016.0,61015.0,0.00224584]
[1723630025865,0.15164312,61016.0,61015.0,0.08416684]
[1723630026060,0.12,61016.0,61015.0,0.08416684]
[1723630026652,0.47530001,61018.0,61017.0,0.081919]
[1723630026653,0.00120001,61018.0,61017.0,0.081919]
[1723630026957,0.00024584,61027.0,61017.0,0.081919]
[1723630026958,0.0980674,61021.0,61020.0,0.081915]
[1723630027157,0.09805725,61023.0,61022.0,0.081912]
[1723630027357,0.09805725,61023.0,61022.0,0.195212]
[1723630027961,0.09805725,61023.0,61022.0,0.081912]
[1723630028166,0.09805725,61024.0,61022.0,0.081912]
[1723630028659,0.09805725,61024.0,61023.0,0.081911]
[1723630028859,0.08215084,61027.0,61023.0,0.081911]
[1723630029059,0.08215084,61027.0,61025.0,0.04884365]
[1723630029267,0.00024584,61027.0,61026.0,0.04884365]
[1723630030866,0.00324584,61027.0,61026.0,0.04884365]
[1723630031368,0.00424584,61027.0,61026.0,0.04884365]
[1723630032664,0.00424584,61027.0,61026.0,0.13075065]
[1723630033172,0.00424584,61027.0,61026.0,0.081907]
[1723630033562,0.00424584,61027.0,61026.0,0.13075065]
[1723630033763,0.00424584,61027.0,61026.0,0.081907]
[1723630040175,0.00868787,61033.0,61032.0,0.081899]
[1723630040370,0.02,61033.0,61032.0,0.442699]
[1723630040571,0.02,61033.0,61032.0,0.53785137]
[1723630040777,0.02,61033.0,61032.0,0.442699]
[1723630040972,0.08171056,61039.0,61037.0,0.081892]
[1723630041176,0.07349767,61047.0,61040.0,0.081888]
[1723630041472,0.442668,61055.0,61040.0,0.081888]
[1723630041473,0.00883184,61051.0,61047.0,0.081878]
[1723630041673,0.1756,61057.0,61047.0,1.015996]
[1723630041674,0.17181411,61048.0,61047.0,1.015996]
[1723630041879,0.16381411,61048.0,61047.0,1.67111284]
[1723630042065,0.16381411,61048.0,61047.0,1.43762313]
[1723630042270,0.16381411,61048.0,61047.0,0.58649954]
[1723630042471,0.16381411,61048.0,61047.0,0.53779484]
[1723630043473,0.16381411,61048.0,61047.0,0.442678]
[1723630043868,0.3099418,61048.0,61047.0,0.934118]
[1723630044074,0.19543611,61048.0,61047.0,1.334118]
[1723630044468,0.19543611,61048.0,61047.0,1.335118]
[1723630044674,0.19543611,61048.0,61047.0,1.416996]
[1723630044883,0.16381411,61048.0,61047.0,1.416996]
[1723630045084,0.08139411,61048.0,61047.0,1.51210354]
[1723630045283,0.10650569,61055.0,61048.0,0.573277]
[1723630045585,0.13100134,61062.0,61061.0,0.08186]
[1723630045782,0.13100134,61063.0,61062.0,0.081858]
[1723630046079,0.17108184,61063.0,61062.0,0.081858]
[1723630046282,0.03161576,61063.0,61062.0,0.081858]
[1723630046480,0.0316147,61063.0,61061.0,0.3608]
[1723630046679,0.0555,61072.0,61061.0,0.44266]
[1723630046980,0.163702,61068.0,61067.0,0.3608]
[1723630047180,0.081858,61062.0,61061.0,0.3608]
[1723630047381,0.11347351,61062.0,61061.0,0.3608]
[1723630048077,0.11347351,61062.0,61060.0,0.00024563]
[1723630048078,0.08186,61061.0,61060.0,0.00024563]
[1723630048280,0.17217551,61061.0,61060.0,0.00024563]
[1723630050385,0.081868,61055.0,61054.0,0.3608]
[1723630050581,0.11348853,61055.0,61054.0,0.3608]
[1723630050889,0.081868,61055.0,61054.0,0.3608]
[1723630051576,0.091868,61055.0,61054.0,0.3608]
[1723630052384,0.01,61055.0,61054.0,0.3608]
[1723630055174,0.01,61055.0,61054.0,0.442669]
[1723630055585,0.012,61055.0,61054.0,0.443669]
[1723630055882,0.012,61055.0,61054.0,0.3618]
[1723630058089,0.012,61055.0,61054.0,0.443669]
[1723630058984,0.012,61055.0,61054.0,0.3618]
[1723630059385,0.175734,61055.0,61054.0,0.001]
[1723630059690,0.093867,61055.0,61054.0,0.001]
[1723630060387,0.175734,61055.0,61054.0,0.001]
[1723630060595,0.093867,61055.0,61054.0,0.001]
[1723630060885,0.16375,61049.0,61048.0,0.00024563]
[1723630061092,0.08188,61046.0,61032.0,0.3608]
[1723630061390,0.081897,61033.0,61032.0,0.3608]
[1723630062284,0.081898,61032.0,61026.0,0.00024563]
[1723630062487,0.23494091,61032.0,61026.0,0.00024563]
[1723630063187,0.09764291,61035.0,61030.0,0.3608]
[1723630063387,0.09764291,61038.0,61032.0,0.442698]
[1723630063691,0.00024563,61039.0,61037.0,0.3608]
[1723630063892,0.17956216,61038.0,61037.0,0.3608]
[1723630064091,0.08189,61038.0,61037.0,0.3608]
[1723630064386,0.08189,61038.0,61026.0,0.00024563]
[1723630064387,0.081896,61034.0,61027.0,0.442704]
[1723630064604,0.09770004,61033.0,61027.0,0.442704]
[1723630064794,0.09770004,61031.0,61027.0,0.442704]
[1723630065090,0.0566,61030.0,61027.0,0.3608]
[1723630065286,0.09770004,61032.0,61027.0,0.3608]
[1723630065483,0.09770004,61031.0,61027.0,0.3608]
[1723630065689,0.09770004,61031.0,61027.0,0.442705]
[1723630065993,0.081898,61033.0,61027.0,0.442705]
[1723630066192,0.081898,61033.0,61032.0,0.3608]
[1723630066891,0.081898,61033.0,61032.0,0.3628]
[1723630067285,0.081898,61033.0,61032.0,0.3608]
[1723630067485,0.081892,61037.0,61032.0,0.3608]
[1723630067691,0.00024563,61039.0,61038.0,0.08189]
[1723630068387,0.0576,61049.0,61047.0,0.081878]
[1723630068685,0.0576,61049.0,61048.0,0.3608]
[1723630070292,0.0576,61049.0,61048.0,0.442677]
[1723630070593,0.0576,61049.0,61048.0,0.443677]
[1723630070801,0.0576,61049.0,61048.0,0.49231042]
[1723630071095,0.0606,61049.0,61048.0,0.49231042]
[1723630071487,0.00175436,61049.0,61048.0,0.49231042]
[1723630071690,0.00175436,61049.0,61048.0,0.49331042]
[1723630072788,0.00175436,61049.0,61048.0,0.49231042]
[1723630073197,0.00024496,61055.0,61052.0,0.081871]
[1723630073395,0.00024496,61055.0,61054.0,0.3608]
[1723630074301,0.00024496,61055.0,61054.0,0.442669]
[1723630074693,0.00024496,61055.0,61054.0,0.4913247]
[1723630075193,0.00024496,61055.0,61054.0,0.442669]
[1723630075494,0.00224496,61055.0,61054.0,0.442669]
[1723630076499,0.00224496,61055.0,61054.0,0.934029]
[1723630077494,0.00024496,61055.0,61054.0,0.934029]
[1723630078195,0.00224496,61055.0,61054.0,0.935029]
[1723630079610,0.00224496,61055.0,61054.0,0.443669]
[1723630080999,0.00224496,61055.0,61054.0,0.3618]
[1723630081496,0.00224496,61055.0,61054.0,0.443669]
[1723630082000,0.0338631,61055.0,61054.0,0.443669]
[1723630082888,0.0338631,61055.0,61054.0,0.525538]
[1723630083092,0.11635916,61055.0,61054.0,1.016898]
[1723630083289,0.11635916,61055.0,61054.0,1.42548923]
[1723630083498,0.0338631,61055.0,61054.0,1.59548923]
[1723630083999,0.00224496,61055.0,61054.0,1.59548923]
[1723630084593,0.11409779,61063.0,61062.0,0.081858]
[1723630084795,0.11409779,61064.0,61063.0,0.081857]
[1723630085087,0.14570988,61064.0,61063.0,0.933937]
[1723630085695,0.031612,61064.0,61063.0,0.85208]
[1723630085890,0.031612,61064.0,61063.0,0.933937]
[1723630086296,0.031612,61064.0,61063.0,0.442657]
[1723630087700,0.031612,61064.0,61063.0,0.443657]
[1723630088091,0.0555,61068.0,61064.0,0.081854]
[1723630088297,0.0555,61068.0,61065.0,0.081853]
[1723630088497,0.0555,61068.0,61066.0,0.081852]
[1723630091405,0.0555,61068.0,61067.0,0.17694631]
[1723630092702,0.0555,61068.0,61067.0,0.22556383]
[1723630092906,0.0555,61068.0,61067.0,0.17694555]
[1723630093806,0.0655,61068.0,61066.0,0.002]
[1723630094002,0.01,61068.0,61066.0,0.002]
[1723630094201,0.0601,61067.0,61066.0,0.081852]
[1723630095506,0.0601,61067.0,61066.0,0.082852]
[1723630095804,0.0601,61067.0,61066.0,0.081852]
[1723630096107,0.0601,61067.0,61066.0,0.082852]
[1723630097406,0.0601,61067.0,61066.0,0.13147028]
[1723630097709,0.0601,61067.0,61066.0,0.082852]
[1723630098813,0.0601,61067.0,61066.0,0.083852]
[1723630099710,0.0601,61067.0,61066.0,0.082852]
[1723630100506,0.0601,61067.0,61066.0,0.1789475]
[1723630100706,0.0601,61067.0,61066.0,0.24379207]
[1723630101407,0.0601,61067.0,61066.0,0.1789475]
[1723630101609,0.0601,61067.0,61066.0,0.24387405]
[1723630102405,0.0601,61067.0,61066.0,0.14877855]
[1723630103315,0.0601,61067.0,61066.0,0.083852]
[1723630104315,0.0801,61067.0,61066.0,0.083852]
[1723630106912,0.0801,61067.0,61066.0,0.14883059]
[1723630107412,0.0801,61067.0,61066.0,0.083852]
[1723630111611,0.0801,61067.0,61066.0,0.17894891]
[1723630111810,0.0801,61067.0,61066.0,0.083852]
[1723630112108,0.0801,61067.0,61066.0,0.1789489]
[1723630112417,0.0801,61067.0,61066.0,0.17894891]
[1723630115516,0.0801,61067.0,61066.0,0.083852]
[1723630115823,0.0801,61067.0,61066.0,0.38520438]
[1723630116112,0.0801,61067.0,61066.0,0.30366559]
[1723630116113,0.0601,61067.0,61066.0,0.30366559]
[1723630117714,0.01915657,61067.0,61066.0,0.30366559]
[1723630117919,0.01915657,61067.0,61066.0,0.32177171]
[1723630118117,0.08141483,61079.0,61066.0,0.32177171]
[1723630118317,0.08831181,61078.0,61074.0,0.3608]
[1723630118527,0.03161181,61077.0,61076.0,0.081838]
[1723630118830,0.03161181,61077.0,61074.0,0.3608]
[1723630118831,0.11409779,61081.0,61080.0,0.081834]
[1723630119017,0.11409779,61081.0,61080.0,0.442634]
[1723630119018,0.03160694,61081.0,61080.0,0.442634]
[1723630119418,0.24731202,61086.0,61082.0,0.08183]
[1723630119419,0.11631068,61086.0,61082.0,0.08183]
[1723630119622,0.14631068,61086.0,61085.0,0.474]
[1723630119815,0.17791726,61086.0,61085.0,0.474]
[1723630120016,0.17791726,61086.0,61085.0,0.3608]
[1723630120217,0.06381947,61086.0,61085.0,0.3608]
[1723630121119,0.06381947,61086.0,61085.0,0.442627]
[1723630122022,0.06381947,61086.0,61085.0,0.3618]
[1723630122227,0.06381947,61086.0,61085.0,0.443627]
[1723630122624,0.06381947,61086.0,61085.0,0.444627]
[1723630123335,0.03221289,61086.0,61085.0,0.444627]
[1723630123627,0.03221289,61086.0,61085.0,0.3628]
[1723630124018,0.03221289,61086.0,61085.0,0.444627]
[1723630125432,0.10015123,61086.0,61085.0,0.444627]
[1723630125628,0.00221289,61086.0,61085.0,0.444627]
[1723630125820,0.00221289,61086.0,61085.0,0.53969666]
[1723630126218,0.04228095,61086.0,61085.0,0.53969666]
[1723630126424,0.0738869,61086.0,61085.0,0.53969666]
[1723630126725,0.0738869,61086.0,61085.0,0.45786966]
[1723630126927,0.0838869,61086.0,61085.0,0.45786966]
[1723630127133,0.1657129,61086.0,61085.0,0.45786966]
[1723630127430,0.1657129,61086.0,61085.0,0.002]
[1723630129528,0.12564484,61086.0,61085.0,0.0970766]
[1723630129927,0.12564484,61086.0,61085.0,0.002]
[1723630130137,0.12564484,61086.0,61085.0,0.09707646]
[1723630133321,0.09403889,61086.0,61085.0,0.09707646]
[1723630133935,0.09403889,61086.0,61085.0,0.09707632]
[1723630134527,0.09403889,61086.0,61085.0,0.002]
[1723630135433,0.09403889,61086.0,61085.0,0.001]
[1723630135629,0.58515889,61086.0,61085.0,0.002]
[1723630135824,0.09403889,61086.0,61085.0,0.002]
[1723630136026,0.17586489,61086.0,61085.0,0.002]
[1723630136634,0.57586489,61086.0,61085.0,0.002]
[1723630136830,0.08184,61076.0,61072.0,0.40957833]
[1723630137023,0.1756,61075.0,61072.0,0.3608]
[1723630137527,0.081842,61074.0,61072.0,0.3608]
[1723630140127,0.081843,61073.0,61072.0,0.3608]
[1723630140725,0.181843,61073.0,61072.0,0.3608]
[1723630141333,0.181843,61073.0,61072.0,0.40957833]
[1723630141739,0.1756,61075.0,61072.0,0.40957833]
[1723630141938,0.081839,61077.0,61072.0,0.40957833]
[1723630141939,0.002,61073.0,61072.0,0.3608]
[1723630142141,0.002,61073.0,61072.0,0.50753677]
[1723630142530,0.081836,61079.0,61073.0,0.081843]
[1723630142732,0.091836,61079.0,61077.0,0.04867959]
[1723630142934,0.091836,61079.0,61074.0,0.081841]
[1723630142935,0.091836,61079.0,61078.0,0.04867959]
[1723630143441,0.01,61079.0,61077.0,0.3608]
[1723630143835,0.01,61079.0,61078.0,0.1132]
[1723630145743,0.011,61079.0,61078.0,0.1142]
[1723630145929,0.011,61079.0,61078.0,0.001]
[1723630147537,0.012,61079.0,61078.0,0.001]
[1723630147736,0.012,61079.0,61078.0,0.09607869]
[1723630147946,0.012,61079.0,61078.0,0.001]
[1723630148440,0.0436091,61079.0,61078.0,0.09607913]
[1723630148842,0.0436091,61079.0,61078.0,0.09707913]
[1723630149047,0.0436091,61079.0,61078.0,0.33891513]
[1723630149347,0.03360851,61079.0,61078.0,0.17891513]
[1723630150146,0.03360851,61079.0,61078.0,0.09707913]
[1723630150443,0.03360851,61079.0,61078.0,0.002]
[1723630150743,0.03360851,61079.0,61078.0,0.083836]
[1723630152144,0.03360851,61079.0,61078.0,0.366836]
[1723630155943,0.03360851,61079.0,61078.0,0.002]
[1723630156545,0.002,61079.0,61078.0,0.002]
[1723630158154,0.002,61079.0,61078.0,0.083836]
[1723630160144,0.002,61079.0,61078.0,0.17891265]
[1723630161047,0.002,61079.0,61078.0,0.17891266]
[1723630161948,0.012,61079.0,61078.0,0.17891266]
[1723630163047,0.002,61079.0,61078.0,0.46191266]
[1723630163944,0.208427,61085.0,61078.0,0.083836]
[1723630164151,0.1366,61085.0,61083.0,0.04875975]
[1723630164455,0.1366,61085.0,61082.0,0.04875975]
[1723630164846,0.08183,61083.0,61082.0,0.04875975]
[1723630165048,0.09183,61083.0,61082.0,0.04875975]
[1723630165562,0.09183,61083.0,61080.0,0.065013]
[1723630165949,0.09183,61083.0,61082.0,0.04876269]
[1723630167344,0.081833,61081.0,61079.0,0.04877291]
[1723630167559,0.201833,61081.0,61080.0,0.0487742]
[1723630167742,0.201833,61081.0,61079.0,0.0487742]
[1723630167942,0.201833,61081.0,61080.0,0.1132]
[1723630171155,0.201833,61081.0,61080.0,0.1629742]
[1723630171454,0.32374599,61081.0,61080.0,0.1152]
[1723630172461,0.32374736,61081.0,61080.0,0.1152]
[1723630175857,0.27351745,61081.0,61080.0,0.1152]
[1723630176058,0.34796268,61081.0,61080.0,0.21028223]
[1723630178062,0.23344355,61081.0,61080.0,0.21028223]
[1723630178465,0.201833,61081.0,61080.0,0.21028223]
[1723630179070,0.201833,61081.0,61080.0,0.1152]
[1723630179367,0.201833,61081.0,61080.0,0.21028178]
[1723630181757,0.201833,61081.0,61080.0,0.1152]
[1723630183461,0.12,61081.0,61080.0,0.1152]
[1723630183666,0.12,61081.0,61080.0,0.180213]
[1723630184866,0.12,61081.0,61080.0,0.1152]
[1723630185063,0.118,61081.0,61080.0,1.598994]
[1723630185270,0.00221289,61086.0,61085.0,0.081827]
[1723630185463,0.00221289,61086.0,61085.0,0.62085295]
[1723630185672,0.00221289,61086.0,61085.0,0.555827]
[1723630186570,0.00221289,61086.0,61085.0,0.556827]
[1723630186770,0.07388613,61086.0,61085.0,0.556827]
[1723630188062,0.07388613,61086.0,61085.0,0.557827]
[1723630189866,0.07388613,61086.0,61085.0,0.56680488]
[1723630190272,0.07388613,61086.0,61085.0,0.66187344]
[1723630191167,0.0338185,61086.0,61085.0,0.66187344]
[1723630191368,0.04228048,61086.0,61085.0,0.66187344]
[1723630191572,0.11663553,61086.0,61085.0,0.66187344]
[1723630191768,0.14824114,61086.0,61085.0,0.66187344]
[1723630193173,0.0338185,61086.0,61085.0,0.66187344]
[1723630193374,0.14821709,61086.0,61085.0,0.661871]
[1723630193579,0.00221289,61086.0,61085.0,0.72688847]
[1723630193876,0.00221289,61086.0,61085.0,0.661871]
[1723630194262,0.00221289,61086.0,61085.0,0.949654]
[1723630194466,0.00221289,61086.0,61085.0,0.94951475]
[1723630194675,0.00221289,61086.0,61085.0,0.94951336]
[1723630194874,0.00221289,61086.0,61085.0,0.78654456]
[1723630195465,0.00221289,61086.0,61085.0,0.86766217]
[1723630195669,0.00221289,61086.0,61085.0,0.8676593]
[1723630196374,0.00221289,61086.0,61085.0,0.661871]
[1723630196973,0.00221289,61086.0,61085.0,0.86765888]
[1723630197472,0.00221289,61086.0,61085.0,0.661871]
[1723630197872,0.00221289,61086.0,61085.0,0.743698]
[1723630201676,0.07387601,61086.0,61085.0,0.743698]
[1723630202368,0.07387601,61086.0,61085.0,0.64863188]
[1723630202570,0.07387601,61086.0,61085.0,0.56680488]
[1723630202978,0.07387601,61086.0,61085.0,0.66186022]
[1723630202979,0.16437032,61086.0,61085.0,0.66186022]
[1723630203173,0.07387601,61086.0,61085.0,0.56680488]
[1723630203779,0.07387601,61086.0,61085.0,0.66186022]
[1723630205474,0.07387601,61086.0,61085.0,0.46683322]
[1723630205772,0.26287892,61086.0,61085.0,0.58003322]
[1723630205976,0.16586066,61086.0,61085.0,0.48497788]
[1723630206284,0.20592263,61086.0,61085.0,0.48497788]
[1723630206472,0.29555948,61086.0,61085.0,0.48497788]
[1723630206676,0.38584207,61086.0,61085.0,0.48497788]
[1723630206876,0.30401607,61086.0,61085.0,0.48497788]
[1723630207207,1.76895504,61086.0,61074.0,0.3608]
[1723630207478,1.76895504,61086.0,61074.0,0.00907016]
[1723630207479,0.16323959,61075.0,61074.0,0.00907016]
[1723630207677,0.12189419,61075.0,61074.0,0.081842]
[1723630207877,0.25158256,61075.0,61074.0,0.081842]
[1723630208080,0.21152059,61075.0,61074.0,0.07862642]
[1723630208276,0.30183841,61075.0,61074.0,0.07862642]
[1723630208686,0.17991944,61075.0,61074.0,0.07862642]
[1723630208885,0.0632,61076.0,61074.0,0.07862642]
[1723630209187,0.0632,61076.0,61074.0,0.19182642]
[1723630210379,0.0632,61076.0,61074.0,0.25667901]
[1723630210575,0.0632,61076.0,61074.0,0.19182642]
[1723630211175,0.0632,61076.0,61074.0,0.24051361]
[1723630211684,0.0632,61076.0,61075.0,0.13052819]
[1723630212980,0.0632,61076.0,61075.0,0.04868719]
[1723630213176,0.0632,61076.0,61074.0,0.474]
[1723630214886,0.0632,61076.0,61075.0,0.001]
[1723630215278,0.0632,61076.0,61075.0,0.20928179]
[1723630215489,0.0632,61076.0,61075.0,0.1628894]
[1723630215886,0.0632,61076.0,61075.0,0.2447304]
[1723630216884,0.0632,61076.0,61075.0,0.196041]
[1723630217085,0.0632,61076.0,61075.0,0.195041]
[1723630217682,0.1296,61077.0,61076.0,0.08184]
[1723630217882,0.0724,61077.0,61076.0,0.08184]
[1723630218086,0.08164463,61080.0,61079.0,0.081836]
[1723630218281,0.0629,61084.0,61079.0,0.4558777]
[1723630218482,0.0629,61084.0,61083.0,0.195031]
[1723630219179,0.0629,61084.0,61083.0,0.29009602]
[1723630219785,0.0629,61084.0,61083.0,0.195031]
[1723630220593,0.1761,61084.0,61083.0,0.001]
[1723630220791,0.257929,61084.0,61083.0,0.001]
[1723630221087,0.33952525,61084.0,61083.0,0.001]
[1723630221390,0.257929,61084.0,61083.0,0.001]
[1723630222091,0.0629,61084.0,61083.0,0.1142]
[1723630222391,0.0629,61084.0,61083.0,0.1152]
[1723630222590,0.0629,61084.0,61083.0,0.002]
[1723630222893,0.144729,61084.0,61083.0,0.002]
[1723630223083,0.144729,61084.0,61083.0,0.1152]
[1723630223984,0.257929,61084.0,61083.0,0.002]
[1723630226295,0.830878,61084.0,61083.0,0.002]
[1723630226592,1.230878,61084.0,61083.0,0.002]
[1723630226980,0.830878,61084.0,61083.0,0.002]
[1723630227183,0.081847,61071.0,61070.0,0.00024563]
[1723630227386,0.647694,61071.0,61070.0,0.00024563]
[1723630227685,0.565847,61071.0,61070.0,0.00024563]
[1723630227882,0.452647,61071.0,61070.0,0.10448141]
[1723630228090,0.452647,61071.0,61070.0,0.09534555]
[1723630228695,0.565847,61071.0,61070.0,0.09534006]
[1723630229196,0.565847,61071.0,61070.0,0.09534077]
[1723630229687,0.97524,61071.0,61061.0,0.06495341]
[1723630229881,0.442658,61063.0,61062.0,0.14381219]
[1723630230086,0.442658,61063.0,61060.0,0.04871067]
[1723630230296,0.3608,61063.0,61060.0,0.04871067]
[1723630230496,0.3608,61063.0,61058.0,0.04871067]
[1723630231094,0.081859,61062.0,61061.0,0.01]
[1723630232995,0.3608,61063.0,61061.0,0.10510532]
[1723630233194,0.3608,61063.0,61062.0,0.09510532]
[1723630234102,0.933937,61063.0,61062.0,0.09510532]
[1723630235389,0.442657,61063.0,61061.0,0.018]
[1723630235590,0.442657,61063.0,61061.0,0.01]
[1723630236196,0.4808,61063.0,61061.0,0.01]
[1723630236400,0.4808,61063.0,61061.0,0.018]
[1723630236590,0.4808,61063.0,61062.0,0.009]
[1723630236789,0.4808,61063.0,61062.0,0.016]
[1723630237191,0.4808,61063.0,61062.0,0.009]
[1723630237491,0.4808,61063.0,61061.0,0.008]
[1723630239495,0.4808,61063.0,61054.0,0.00918436]
[1723630239496,0.4808,61063.0,61060.0,0.081861]
[1723630239697,0.4808,61063.0,61061.0,0.01]
[1723630240602,0.4808,61063.0,61062.0,0.007]
[1723630243192,0.4808,61063.0,61061.0,0.01]
[1723630243398,0.4808,61063.0,61062.0,0.081859]
[1723630243593,0.4808,61063.0,61062.0,0.088859]
[1723630243999,0.4808,61063.0,61062.0,0.097859]
[1723630245100,0.4808,61063.0,61062.0,0.088859]
[1723630247192,0.4808,61063.0,61062.0,0.081859]
[1723630248500,0.4808,61063.0,61062.0,0.097859]
[1723630248501,0.3608,61063.0,61062.0,0.097859]
[1723630250003,0.00024563,61067.0,61066.0,0.081853]
[1723630250802,0.00024563,61067.0,61066.0,0.145453]
[1723630251004,0.3608,61082.0,61069.0,0.081849]
[1723630251199,0.3608,61083.0,61081.0,0.081833]
[1723630252215,0.3608,61083.0,61082.0,0.081832]
[1723630254414,0.00221289,61086.0,61084.0,0.081828]
[1723630255902,0.00221289,61086.0,61085.0,0.081828]
[1723630259108,0.00221289,61086.0,61085.0,0.083828]
[1723630261416,0.36301289,61086.0,61085.0,0.083828]
[1723630261806,0.36301289,61086.0,61085.0,0.002]
[1723630262001,0.44483989,61086.0,61085.0,0.002]
[1723630262216,0.36301289,61086.0,61085.0,0.002]
[1723630263519,0.36401289,61086.0,61085.0,0.002]
[1723630263717,0.93695989,61086.0,61085.0,0.002]
[1723630264615,0.93695989,61086.0,61085.0,0.083828]
[1723630264616,0.36401289,61086.0,61085.0,0.083828]
[1723630264814,0.36401289,61086.0,61085.0,0.002]
[1723630265014,0.36401289,61086.0,61085.0,0.001]
[1723630265411,0.36301289,61086.0,61085.0,0.001]
[1723630265617,0.36401289,61086.0,61085.0,0.001]
[1723630266212,0.36401289,61086.0,61083.0,0.08183]
[1723630266414,0.36301289,61086.0,61083.0,0.08183]
[1723630266605,0.36301289,61086.0,61084.0,0.081829]
[1723630267014,0.36301289,61086.0,61085.0,0.002]